bitfinex-derivatives/quotes_ETHF0:USTF0_20250530
["timestamp","ask_amount","ask_price","bid_price","bid_amount"]
[1748590685719,0.76078,2627.8,2627.7,4.28]
[1748590686318,3.2078,2628.2,2628.0,0.7607]
[1748590686520,3.2078,2628.2,2627.7,7.4878]
[1748590686715,0.76071,2628.1,2627.9,0.76074]
[1748590687018,3.2078,2628.2,2627.6,4.28]
[1748590687220,0.7608,2627.8,2627.6,5.04082]
[1748590687419,3.2078,2628.2,2627.6,4.28]
[1748590687815,0.76071,2628.1,2627.9,0.76075]
[1748590688016,0.76072,2628.0,2627.8,0.76076]
[1748590688415,3.2078,2628.2,2627.6,4.28]
[1748590688625,0.76074,2628.0,2627.7,0.76081]
[1748590688918,0.76079,2627.8,2627.6,0.76082]
[1748590689118,0.76079,2627.8,2627.7,4.28]
[1748590689517,0.76077,2627.9,2627.7,4.28]
[1748590689724,0.76074,2628.0,2627.7,5.0408]
[1748590690415,3.2078,2628.2,2627.7,5.0408]
[1748590690610,3.2078,2628.2,2627.7,7.4878]
[1748590690820,3.2078,2628.2,2627.8,1.2431]
[1748590691013,0.7607,2628.1,2627.9,0.76073]
[1748590691217,3.2078,2628.2,2627.9,0.76073]
[1748590691417,3.96847,2628.2,2628.0,0.76072]
[1748590691617,3.96847,2628.2,2628.1,4.28]
[1748590691814,5.07511789,2628.2,2628.1,4.28]
[1748590692325,4.31444789,2628.2,2628.1,4.279]
[1748590692534,5.07511789,2628.2,2628.1,4.279]
[1748590693120,3.2078,2628.2,2628.1,5.0397]
[1748590693517,0.06993857,2628.3,2628.2,0.76067]
[1748590693818,0.76056,2628.6,2628.4,0.7606]
[1748590694023,0.76056,2628.6,2628.5,4.279]
[1748590694219,1.86685169,2628.6,2628.5,4.279]
[1748590694628,4.4682,2628.8,2628.7,0.76052]
[1748590694827,4.31372283,2628.8,2628.7,0.76052]
[1748590695123,3.2078,2628.8,2628.7,0.76052]
[1748590696026,3.2078,2628.8,2628.5,5.5833]
[1748590696230,0.76053,2628.7,2628.6,4.279]
[1748590696532,3.2078,2628.8,2628.7,0.76052]
[1748590697122,2.53928,2629.6,2628.8,1.90124]
[1748590697123,3.8464,2629.6,2628.8,1.90124]
[1748590697325,3.8464,2629.6,2629.4,0.76032]
[1748590697326,2.3378018,2629.5,2629.4,0.76032]
[1748590697529,2.3378018,2629.5,2629.4,5.03932]
[1748590697725,2.3378018,2629.5,2629.4,4.279]
[1748590697726,3.0980918,2629.5,2629.4,4.279]
[1748590698029,3.09803656,2629.5,2629.4,4.279]
[1748590698424,1.10474656,2629.5,2629.4,4.279]
[1748590698620,1.10474656,2629.5,2629.4,5.03932]
[1748590698923,3.2078,2629.6,2629.5,0.76029]
[1748590699436,3.2078,2630.0,2629.9,0.76017]
[1748590699634,3.2078,2630.3,2630.2,0.76009]
[1748590699828,4.3114085,2630.3,2630.2,5.03109]
[1748590700038,3.2078,2630.3,2630.2,4.271]
[1748590700231,0.76012,2630.1,2630.0,0.00570396]
[1748590700431,1.203,2630.2,2630.0,4.27670396]
[1748590700631,3.2078,2630.3,2630.0,4.27670396]
[1748590700830,3.8332,2630.6,2630.1,1.219]
[1748590701031,2.305556,2630.5,2630.0,0.00570396]
[1748590701235,3.96788,2630.3,2630.1,4.27]
[1748590701543,3.2078,2630.3,2630.1,5.0301]
[1748590701730,3.2078,2630.3,2630.0,0.00570396]
[1748590701939,2.00101,2630.2,2630.1,4.27]
[1748590703237,1.2409,2630.2,2630.1,4.27]
[1748590703431,0.76012,2630.1,2630.0,0.00570396]
[1748590703626,1.2409,2630.5,2630.0,4.27570396]
[1748590703843,0.76005,2630.4,2630.1,0.76011]
[1748590704137,1.2409,2630.3,2630.0,5.03583396]
[1748590704331,0.76011,2630.2,2630.0,5.03584396]
[1748590704534,1.2409,2630.3,2630.2,0.76009]
[1748590705332,0.76012,2630.1,2630.0,0.00570396]
[1748590705531,0.76012,2630.1,2630.0,4.27570396]
[1748590705930,0.76012,2630.1,2630.0,0.00570396]
[1748590706231,5.76012,2630.1,2630.0,0.00570396]
[1748590706438,6.86295068,2630.1,2630.0,0.00570396]
[1748590706736,8.09485068,2630.1,2630.0,0.00570396]
[1748590707439,3.09485068,2630.1,2630.0,0.00570396]
[1748590708626,8.09485068,2630.1,2630.0,0.00570396]
[1748590709235,1.90064,2629.7,2629.0,1.3243]
[1748590709430,3.2078,2629.4,2628.9,2.02726]
[1748590709639,0.76038,2629.2,2628.9,0.76046]
[1748590709842,0.76038,2629.2,2629.1,42.621]
[1748590710638,1.244,2629.3,2629.1,43.38141]
[1748590710931,0.76038,2629.2,2629.1,42.621]
[1748590711238,0.00566701,2629.4,2629.3,0.76035]
[1748590712038,0.76035,2629.3,2629.2,0.6561]
[1748590712240,3.96815,2629.3,2629.2,0.6561]
[1748590712437,2.02610701,2629.4,2629.2,1.41648]
[1748590712636,2.02610701,2629.4,2629.3,0.76035]
[1748590712945,1.26576701,2629.4,2629.2,0.6561]
[1748590713236,1.26576701,2629.4,2629.3,0.76035]
[1748590713237,0.00566701,2629.4,2629.3,0.76035]
[1748590713444,0.00566701,2629.4,2629.3,1.96195]
[1748590713839,0.76598701,2629.4,2629.3,1.2016]
[1748590714434,0.76600701,2629.4,2629.3,4.269]
[1748590715049,0.83594558,2629.4,2629.3,4.269]
[1748590715436,0.07560558,2629.4,2629.3,4.269]
[1748590715639,0.07560558,2629.4,2629.3,6.23095]
[1748590715835,0.07560558,2629.4,2629.3,9.43875]
[1748590716151,4.5221,2630.0,2629.8,0.76019]
[1748590716152,5.28227,2630.0,2629.8,0.76019]
[1748590716350,3.8486,2630.3,2629.9,4.269]
[1748590716553,4.60866,2630.3,2630.2,0.76009]
[1748590716850,3.96787,2630.3,2630.1,0.7601]
[1748590717040,0.76007,2630.3,2630.1,1.9718]
[1748590717543,0.76003,2630.5,2630.3,0.76004]
[1748590717745,0.76003,2630.5,2630.2,1.2117]
[1748590717746,0.76,2630.5,2630.4,5.02903]
[1748590717948,0.76,2630.5,2630.4,4.269]
[1748590718846,3.2078,2630.6,2630.1,0.76011]
[1748590719044,3.2078,2630.6,2630.2,4.269]
[1748590719045,1.2613,2630.4,2630.2,4.269]
[1748590719347,0.76009,2630.3,2630.2,4.269]
[1748590719546,3.2078,2632.2,2631.6,0.75968]
[1748590719740,1.2057,2631.9,2631.6,4.27470396]
[1748590719942,0.75966,2631.7,2631.6,0.00570396]
[1748590720148,6.86578678,2631.7,2631.6,0.00570396]
[1748590720341,8.07148678,2631.7,2631.6,0.00570396]
[1748590721647,0.75988,2631.0,2630.7,41.5388]
[1748590721949,1.2057,2630.9,2630.8,4.269]
[1748590722243,3.2078,2631.4,2630.8,4.269]
[1748590722244,0.75976,2631.4,2630.8,4.269]
[1748590722446,1.2892,2631.3,2630.8,5.4796]
[1748590722645,1.29490396,2631.3,2631.2,0.7598]
[1748590722847,0.00570396,2631.3,2631.2,5.0278]
[1748590725150,1.2892,2631.9,2631.8,0.75963]
[1748590725351,1.2892,2631.9,2631.8,4.268]
[1748590725648,1.2892,2631.9,2631.5,3.2078]
[1748590725855,1.2892,2631.9,2631.6,4.268]
[1748590726249,1.2892,2631.9,2631.8,0.75963]
[1748590726456,2.04881,2631.9,2631.7,0.75965]
[1748590726657,1.3248,2632.1,2631.6,5.5188]
[1748590726950,0.75961,2631.9,2631.7,0.75965]
[1748590727351,0.75961,2631.9,2631.7,0.75963]
[1748590727555,2.02529,2632.0,2631.8,0.7596]
[1748590727751,1.2657,2632.0,2631.6,5.5188]
[1748590727953,0.75965,2631.8,2631.6,6.27848]
[1748590728258,0.75962,2631.9,2631.7,0.75965]
[1748590728454,0.75963,2631.9,2631.7,0.75964]
[1748590728653,1.2657,2632.0,2631.6,6.27847]
[1748590728859,0.75967,2631.7,2631.5,3.9675]
[1748590729054,0.75967,2631.7,2631.6,4.267]
[1748590729248,0.75969,2631.6,2631.5,3.2078]
[1748590729551,0.75981,2631.2,2630.9,3.2078]
[1748590729853,1.2197,2631.5,2631.0,0.75985]
[1748590730058,0.75981,2631.2,2631.0,0.75985]
[1748590730263,0.75983,2631.1,2631.0,0.75985]
[1748590730463,1.2197,2631.5,2631.0,0.75985]
[1748590730667,1.8772,2631.5,2631.0,0.75985]
[1748590730867,0.75982,2631.2,2631.0,0.75985]
[1748590731172,0.01533574,2631.1,2631.0,0.75985]
[1748590732972,5.74e-06,2631.1,2631.0,0.75985]
[1748590733269,0.75964,2631.8,2631.6,0.75966]
[1748590733463,2.01704,2631.8,2631.7,4.261]
[1748590733862,1.2574,2631.8,2631.7,4.261]
[1748590734062,2.01703,2631.8,2631.7,4.261]
[1748590734468,0.06993857,2631.9,2631.7,5.02064]
[1748590734868,0.75963,2631.8,2631.7,0.75964]
[1748590735068,0.06993857,2631.9,2631.7,5.02064]
[1748590735273,0.75963,2631.8,2631.7,5.02064]
[1748590735773,0.82955857,2631.9,2631.7,5.02064]
[1748590735967,0.06993857,2631.9,2631.8,0.56973]
[1748590736172,0.06993857,2631.9,2631.8,1.85803]
[1748590737871,0.82953857,2631.9,2631.8,1.85803]
[1748590738569,0.06993857,2631.9,2631.8,1.85803]
[1748590739672,0.75963,2631.8,2631.7,5.02064]
[1748590739873,0.75963,2631.8,2631.7,4.26]
[1748590740075,0.75969,2631.6,2631.5,3.2078]
[1748590740272,1.29013857,2631.9,2631.5,8.22749]
[1748590740273,1.97988,2631.7,2631.5,8.22749]
[1748590740476,0.06993857,2631.9,2631.5,7.4678]
[1748590740774,0.75964,2631.8,2631.7,0.75965]
[1748590741075,0.06993857,2631.9,2631.8,0.75963]
[1748590741274,0.06993857,2631.9,2631.6,1.2391]
[1748590741474,0.82954857,2631.9,2631.8,0.75963]
[1748590741877,0.75967,2631.7,2631.6,0.75968]
[1748590742277,0.75964,2631.8,2631.7,0.75965]
[1748590742481,2.08074,2631.8,2631.7,0.75965]
[1748590742781,1.3211,2631.8,2631.5,7.4678]
[1748590743077,1.3211,2631.8,2631.6,4.26]
[1748590743278,0.75966,2631.7,2631.6,5.01968]
[1748590743672,0.75966,2631.7,2631.6,0.75968]
[1748590743873,0.75966,2631.7,2631.6,4.26]
[1748590744074,0.75969,2631.6,2631.5,3.2078]
[1748590744275,2.00479,2631.6,2631.5,7.4678]
[1748590744470,1.2451,2631.6,2631.5,4.26]
[1748590744674,0.7598,2631.2,2631.1,3.2078]
[1748590744873,4.4529,2631.6,2630.9,3.2078]
[1748590745082,1.2451,2631.1,2630.8,0.00570396]
[1748590745281,1.2451,2631.1,2630.8,0.76560396]
[1748590745883,1.2451,2631.1,2630.8,0.00570396]
[1748590746085,2.00494,2631.1,2630.9,4.26]
[1748590746283,1.2451,2631.1,2630.9,5.01987]
[1748590746782,1.2451,2631.1,2630.8,0.76561396]
[1748590746982,1.2451,2631.1,2630.9,4.26]
[1748590747177,0.75986,2631.0,2630.9,4.26]
[1748590747377,0.75986,2631.0,2630.8,0.00570396]
[1748590747577,0.75989,2630.9,2630.8,0.00570396]
[1748590747778,0.75989,2630.9,2630.8,4.26570396]
[1748590748686,0.75989,2630.9,2630.8,0.00570396]
[1748590749381,0.75989,2630.9,2630.8,4.26570396]
[1748590749581,1.2451,2631.1,2630.9,0.75987]
[1748590749885,0.75989,2630.9,2630.8,4.26570396]
[1748590750581,0.75988,2631.0,2630.8,4.26570396]
[1748590750778,2.08018,2631.0,2630.8,4.26570396]
[1748590750980,0.75989,2630.9,2630.8,4.26570396]
[1748590751684,2.08017,2631.0,2630.8,5.02562396]
[1748590751990,1.3203,2631.0,2630.8,5.02561396]
[1748590752287,2.08016,2631.0,2630.8,4.26570396]
[1748590752485,0.75989,2630.9,2630.8,4.26570396]
[1748590754292,0.75989,2630.9,2630.8,4.26670396]
[1748590754678,0.75989,2630.9,2630.8,0.00570396]
[1748590754883,5.75989,2630.9,2630.8,0.00570396]
[1748590755085,5.75989,2630.9,2629.9,2.5545]
[1748590755086,9.31770522,2630.9,2629.9,3.2078]
[1748590755285,0.76003,2630.4,2630.3,4.261]
[1748590755480,0.76006,2630.3,2630.2,4.261]
[1748590756791,0.76012,2630.1,2630.0,0.00570396]
[1748590757090,0.76012,2630.1,2630.0,4.26670396]
[1748590757591,2.02272,2630.1,2630.0,4.26670396]
[1748590763895,2.02272,2630.1,2630.0,0.00570396]
[1748590764088,2.02272,2630.1,2630.0,4.26070396]
[1748590766199,2.02272,2630.1,2630.0,0.00570396]
[1748590766399,2.02272,2630.1,2630.0,4.26070396]
[1748590767097,2.02272,2630.1,2630.0,0.00570396]
[1748590773397,0.76012,2630.1,2630.0,0.00570396]
[1748590773604,0.76012,2630.2,2630.1,0.76012]
[1748590773802,0.76012,2630.1,2630.0,0.00570396]
[1748590774001,0.76012,2630.1,2630.0,2.72330396]
[1748590774202,0.06993857,2630.3,2630.2,0.76009]
[1748590774505,0.7601,2630.2,2630.1,0.7601]
[1748590774805,0.76012,2630.1,2630.0,3.48343396]
[1748590775007,0.76012,2630.1,2630.0,6.97930396]
[1748590775206,0.76012,2630.1,2630.0,7.73945396]
[1748590775799,0.83005857,2630.1,2630.0,7.73945396]
[1748590776002,0.83005857,2630.1,2630.0,6.97930396]
[1748590776201,0.83005857,2630.1,2630.0,5.68360396]
[1748590776405,0.83005857,2630.1,2630.0,0.00570396]
[1748590776707,0.83005857,2630.1,2630.0,4.26170396]
[1748590777302,0.06993857,2630.1,2630.0,5.02185396]
[1748590777907,0.83005857,2630.1,2630.0,5.02185396]
[1748590778108,0.06993857,2630.1,2630.0,5.02185396]
[1748590778508,0.83005857,2630.1,2630.0,4.26170396]
[1748590778710,0.83005857,2630.1,2630.0,0.00570396]
[1748590778919,0.83005857,2630.1,2630.0,4.26170396]
[1748590779418,2.03695857,2630.1,2630.0,4.26170396]
[1748590779813,3.14727903,2630.1,2630.0,4.26170396]
[1748590780012,3.14727903,2630.1,2630.0,0.00570396]
[1748590780213,3.14727903,2630.1,2630.0,3.96e-06]
[1748590780214,8.14727903,2630.1,2630.0,3.96e-06]
[1748590782324,1.90082,2629.4,2629.1,4.256]
[1748590782522,0.76038,2629.2,2629.1,4.256]
[1748590782727,1.87070046,2629.2,2629.1,4.256]
[1748590782927,3.15170046,2629.2,2629.1,4.256]
[1748590784123,1.87070046,2629.2,2629.1,4.256]
[1748590784626,1.87070046,2629.2,2629.1,5.01641]
[1748590784823,1.87070046,2629.2,2629.1,4.9343]
[1748590785024,0.76038,2629.2,2629.1,4.9343]
[1748590786624,0.76041,2629.1,2629.0,0.7177]
[1748590786927,0.76041,2629.1,2629.0,4.9737]
[1748590786928,2.08401,2629.1,2629.0,4.9737]
[1748590787427,3.19522722,2629.1,2629.0,4.256]
[1748590788824,0.76044,2629.0,2628.9,4.26270396]
[1748590789026,6.39585722,2629.0,2628.9,0.00570396]
[1748590789229,7.75865722,2629.0,2628.9,0.00570396]
[1748590789819,0.76061,2628.4,2628.3,1.2134]
[1748590790024,0.76061,2628.4,2628.3,4.257]
[1748590790721,1.90168,2628.2,2626.8,1.90268]
[1748590790922,0.00570396,2627.8,2627.7,0.76079]
[1748590791329,0.00570396,2627.8,2627.7,0.76082]
[1748590791623,0.1902,2628.1,2628.0,0.76073]
[1748590791831,0.1902,2628.1,2628.0,5.00773]
[1748590792422,3.2078,2628.9,2628.8,0.7605]
[1748590792628,4.31591223,2628.9,2628.8,0.7605]
[1748590792925,0.00570396,2629.1,2629.0,0.76044]
[1748590796729,0.00570396,2629.1,2629.0,5.00744]
[1748590799330,0.00570396,2629.1,2629.0,10.00744]
[1748590799532,0.00570396,2629.1,2629.0,13.21524]
[1748590800127,0.00570396,2629.1,2629.0,8.96824]
[1748590800335,0.00570396,2629.1,2629.0,8.21524]
[1748590800532,0.00570396,2629.1,2629.0,13.21524]
[1748590801325,3.2078,2629.8,2629.1,0.76041]
[1748590801533,0.76025,2629.7,2629.6,0.76025]
[1748590801726,3.96803,2629.8,2629.7,0.76024]
[1748590801929,0.76023,2629.8,2629.7,0.76024]
[1748590802130,0.76023,2629.8,2629.7,2.07224]
[1748590802334,0.76023,2629.8,2629.7,1.312]
[1748590802930,0.00570396,2630.0,2629.7,1.312]
[1748590803132,0.7602,2629.9,2629.7,2.07222]
[1748590803834,0.76019,2629.9,2629.7,1.312]
[1748590804030,1.28990396,2630.0,2629.8,0.7602]
[1748590804230,0.00570396,2630.0,2629.9,0.76018]
[1748590804632,0.76585396,2630.0,2629.8,0.76019]
[1748590804931,5.00570396,2630.0,2629.3,3.2078]
[1748590805131,0.76032,2629.4,2629.3,3.2078]
[1748590805329,0.76032,2629.4,2629.0,40.23]
[1748590805330,0.76041,2629.1,2629.0,42.588]
[1748590805833,0.76041,2629.1,2629.0,4.247]
[1748590806332,0.76049,2628.9,2628.7,0.76052]
[1748590806528,0.76047,2628.9,2628.8,4.247]
[1748590806730,1.2613,2629.0,2628.9,0.76047]
[1748590806931,2.02176,2629.0,2628.8,5.00748]
[1748590807130,0.76047,2628.9,2628.8,4.247]
[1748590807327,2.00967,2628.9,2628.8,4.247]
[1748590807725,2.00967,2628.9,2628.6,0.00570396]
[1748590807726,0.76053,2628.7,2628.6,4.25270396]
[1748590807928,3.96833,2628.7,2628.6,0.00570396]
[1748590809733,0.76053,2628.7,2628.6,0.00570396]
[1748590810331,3.96833,2628.7,2628.6,0.00570396]
[1748590810631,5.07848006,2628.7,2628.6,0.00570396]
[1748590810829,6.36128006,2628.7,2628.6,0.00570396]
[1748590811835,6.36089164,2628.7,2628.6,0.00570396]
[1748590813636,0.7607,2628.1,2628.0,38.338]
[1748590813836,0.7607,2628.1,2628.0,42.585]
[1748590814243,0.76079,2627.8,2627.7,0.6588]
[1748590814542,0.76079,2627.8,2627.7,4.247]
[1748590814936,0.76082,2627.7,2627.6,3.2078]
[1748590815132,0.76082,2627.7,2627.6,7.4558]
[1748590815740,5.17914,2627.6,2627.5,4.25370396]
[1748590817040,4.4183,2627.6,2627.5,4.25370396]
[1748590817247,5.17914,2627.6,2627.5,4.25370396]
[1748590817945,0.68370396,2628.0,2627.5,4.25370396]
[1748590818247,0.00570396,2628.0,2627.8,0.76078]
[1748590818446,0.00570396,2628.0,2627.9,4.248]
[1748590818639,0.76643396,2628.0,2627.9,4.248]
[1748590819140,0.00570396,2628.0,2627.9,4.248]
[1748590819739,0.00570396,2628.0,2627.5,0.00570396]
[1748590819740,1.9019,2627.9,2627.5,0.00570396]
[1748590819940,0.76084,2627.6,2627.5,4.25370396]
[1748590820644,0.06993857,2627.6,2627.5,4.25370396]
[1748590820950,0.06993857,2627.6,2627.5,5.01457396]
[1748590821148,0.06993857,2627.6,2627.5,6.34007396]
[1748590824545,0.83077857,2627.6,2627.5,1.33120396]
[1748590824745,0.83077857,2627.6,2627.5,4.24270396]
[1748590824746,0.06993857,2627.6,2627.5,4.24270396]
[1748590824936,0.06993857,2627.6,2627.5,5.00357396]
[1748590826451,0.06993857,2627.6,2627.5,6.25607396]
[1748590828946,0.06993857,2627.6,2627.5,0.00570396]
[1748590829140,0.83077857,2627.6,2627.5,4.24270396]
[1748590829340,0.06993857,2627.6,2627.5,4.24270396]
[1748590829545,0.06993857,2627.6,2627.5,6.20687396]
[1748590829940,0.06993857,2627.6,2627.5,4.24270396]
[1748590830153,0.83077857,2627.6,2627.5,4.24270396]
[1748590830540,2.21227857,2627.6,2627.5,0.00570396]
[1748590832449,5.42007857,2627.6,2627.5,0.00570396]
[1748590833052,2.21227857,2627.6,2627.5,0.00570396]
[1748590833252,5.42007857,2627.6,2627.5,0.00570396]
[1748590833548,1.90222,2627.5,2627.0,4.238]
[1748590833750,1.90255,2627.0,2626.4,41.5678]
[1748590834053,0.76116,2626.5,2626.4,42.598]
[1748590834452,2.5574,2626.9,2626.4,38.36]
[1748590834646,2.5574,2626.9,2626.5,4.238]
[1748590835151,0.76113,2626.6,2626.5,4.238]
[1748590835549,2.5574,2626.9,2626.5,4.238]
[1748590835740,0.76108,2626.8,2626.6,0.76113]
[1748590835943,0.76108,2626.8,2626.6,1.2262]
[1748590836650,0.7611,2626.7,2626.6,1.2262]
[1748590837353,0.76116,2626.5,2626.4,38.36570396]
[1748590837552,0.76116,2626.5,2626.4,42.60370396]
[1748590838851,3.11843,2626.9,2626.4,42.60370396]
[1748590838852,1.2158,2626.9,2626.4,43.36487396]
[1748590839058,0.7611,2626.8,2626.5,0.76114]
[1748590839255,0.76108,2626.8,2626.6,1.2327]
[1748590839453,0.76111,2626.7,2626.6,1.2327]
[1748590839857,0.76116,2626.5,2626.4,42.60370396]
[1748590840053,0.76116,2626.5,2626.4,43.83740396]
[1748590840456,1.2158,2626.9,2626.4,43.83740396]
[1748590840659,0.76115,2626.6,2626.4,44.59858396]
[1748590841051,1.2158,2626.9,2626.4,43.83740396]
[1748590841253,0.76112,2626.7,2626.5,0.76114]
[1748590841456,1.2158,2626.9,2626.5,1.2033]
[1748590841651,0.76113,2626.7,2626.5,1.96446]
[1748590841956,0.76106,2626.9,2626.7,0.76109]
[1748590842260,0.76106,2626.9,2626.8,4.239]
[1748590842456,1.3113,2627.2,2626.8,5.4423]
[1748590842650,1.3113,2627.2,2626.9,3.2078]
[1748590842948,3.2078,2627.9,2627.0,3.10582]
[1748590843155,0.7608,2627.8,2627.6,3.96863]
[1748590843455,0.76079,2627.8,2627.7,4.239]
[1748590843650,0.00570396,2628.0,2627.7,4.239]
[1748590843856,0.76646396,2628.0,2627.7,6.2031]
[1748590844052,0.76646396,2628.0,2627.8,1.9997]
[1748590844253,0.76076,2627.9,2627.8,1.9997]
[1748590844557,0.76645396,2628.0,2627.8,1.9997]
[1748590844757,0.00570396,2628.0,2627.8,1.9997]
[1748590844952,0.76645396,2628.0,2627.8,2.76048]
[1748590845154,0.76076,2627.9,2627.8,1.9997]
[1748590845355,0.76645396,2628.0,2627.8,1.9997]
[1748590845559,0.76076,2627.9,2627.8,1.9997]
[1748590845763,0.00570396,2628.0,2627.9,0.76076]
[1748590845960,0.00570396,2628.0,2627.9,3.96856]
[1748590846151,0.00570396,2628.0,2627.9,5.24896]
[1748590846658,0.76643396,2628.0,2627.9,4.4882]
[1748590846854,0.76643396,2628.0,2627.9,4.238]
[1748590847061,0.76076,2627.9,2627.7,0.6864]
[1748590847258,0.76076,2627.9,2627.8,4.238]
[1748590847458,2.07926,2627.9,2627.8,4.238]
[1748590847753,1.3185,2627.9,2627.8,4.99879]
[1748590847958,0.00570396,2628.0,2627.9,0.76076]
[1748590848866,0.76076,2627.9,2627.8,5.5321]
[1748590849065,0.76079,2627.8,2627.7,0.6864]
[1748590849358,0.84908,2627.9,2627.7,5.6852]
[1748590849568,0.0883,2627.9,2627.8,0.76079]
[1748590849959,0.0883,2627.9,2627.7,5.6852]
[1748590850475,0.0883,2627.9,2627.8,0.76079]
[1748590850671,0.84906,2627.9,2627.7,4.9244]
[1748590850875,0.0883,2627.9,2627.7,5.68521]
[1748590851076,0.0883,2627.9,2627.8,0.76079]
[1748590851477,0.0883,2627.9,2627.8,1.3099]
[1748590851676,0.84906,2627.9,2627.8,1.3099]
[1748590852174,0.0883,2627.9,2627.8,2.07069]
[1748590852875,0.84906,2627.9,2627.8,1.3099]
[1748590853074,0.76079,2627.8,2627.7,4.9244]
[1748590853676,2.14557,2627.9,2627.8,0.76079]
[1748590853865,0.84907,2627.9,2627.8,0.76079]
[1748590854071,0.84907,2627.9,2627.8,1.98799]
[1748590854271,0.84907,2627.9,2627.8,1.2272]
[1748590855381,0.76079,2627.8,2627.7,4.9124]
[1748590855582,2.14557,2627.9,2627.7,4.9124]
[1748590855785,0.84907,2627.9,2627.7,4.9124]
[1748590856080,0.84907,2627.9,2627.8,1.2272]
[1748590856480,0.0883,2627.9,2627.8,1.98799]
[1748590856983,0.84906,2627.9,2627.8,1.2272]
[1748590857184,0.76079,2627.8,2627.7,4.9124]
[1748590857379,0.70843878,2627.8,2627.7,5.67322]
[1748590858478,1.46922878,2627.8,2627.7,4.9124]
[1748590858885,0.76085,2627.6,2627.5,3.96866]
[1748590859087,0.76083,2627.7,2627.6,0.76082]
[1748590859279,2.69483878,2627.8,2627.7,0.76082]
[1748590859680,1.46923878,2627.8,2627.7,0.76082]
[1748590859882,1.46922878,2627.8,2627.7,0.76082]
[1748590860376,0.70843878,2627.8,2627.7,0.76082]
[1748590860682,0.70843878,2627.8,2627.7,5.76082]
[1748590861289,1.9012,2628.9,2628.0,1.90178]
[1748590861477,0.76058,2628.6,2628.5,0.76058]
[1748590861677,0.76058,2628.6,2628.5,4.225]
[1748590863187,0.76056,2628.6,2628.5,4.225]
[1748590865290,0.83049857,2628.6,2628.5,4.225]
[1748590866495,0.83049857,2628.6,2628.5,4.98558]
[1748590866693,0.83049857,2628.6,2628.5,4.225]
[1748590866888,0.06993857,2628.6,2628.5,4.98558]
[1748590867285,0.83049857,2628.6,2628.5,4.225]
[1748590867593,0.06993857,2628.6,2628.5,4.98558]
[1748590867791,0.83049857,2628.6,2628.5,4.225]
[1748590868091,1.37643857,2628.6,2628.5,4.98558]
[1748590868689,2.13699857,2628.6,2628.5,4.225]
[1748590869086,1.37643857,2628.6,2628.5,4.225]
[1748590869291,2.13699857,2628.6,2628.5,4.225]
[1748590869593,1.37643857,2628.6,2628.5,4.98558]
[1748590869796,2.13699857,2628.6,2628.5,4.225]
[1748590870496,0.76059,2628.5,2628.4,0.76061]
[1748590870797,0.83050857,2628.6,2628.5,0.76058]
[1748590871189,0.06993857,2628.6,2628.4,5.4972]
[1748590871391,0.06993857,2628.6,2628.5,0.76058]
[1748590871591,0.06993857,2628.6,2628.5,2.04868]
[1748590871795,0.00570396,2628.8,2628.7,0.76053]
[1748590872100,0.00570396,2628.8,2628.7,3.2078]
[1748590872393,0.76620396,2628.8,2628.7,7.4318]
[1748590873692,0.76620396,2628.8,2628.7,4.224]
[1748590874494,0.76058,2628.5,2628.4,3.9684]
[1748590874698,0.76058,2628.6,2628.4,8.1924]
[1748590874896,0.76056,2628.6,2628.4,8.1924]
[1748590875097,0.76058,2628.5,2628.4,8.1924]
[1748590875595,0.06993857,2628.6,2628.4,8.1924]
[1748590875794,0.76058,2628.5,2628.4,7.4318]
[1748590876395,0.83051857,2628.6,2628.5,0.76058]
[1748590876595,0.83049857,2628.6,2628.5,4.224]
[1748590878896,0.76058,2628.5,2628.4,3.2078]
[1748590879199,1.98977807,2628.5,2628.4,3.2078]
[1748590879405,1.99588,2628.5,2628.4,4.224]
[1748590879698,3.10649683,2628.5,2628.4,4.224]
[1748590880101,1.99588,2628.5,2628.4,4.224]
[1748590880705,1.30523857,2628.5,2628.4,4.98461]
[1748590880903,2.06581857,2628.5,2628.4,4.224]
[1748590882302,2.06581857,2628.5,2628.3,0.00570396]
[1748590882303,0.76061,2628.4,2628.3,0.00570396]
[1748590882508,3.31511,2628.4,2628.3,4.21670396]
[1748590883706,4.42637428,2628.4,2628.3,4.21670396]
[1748590884409,3.31511,2628.4,2628.3,0.00570396]
[1748590884611,3.31511,2628.4,2628.3,4.21670396]
[1748590885311,4.42657479,2628.4,2628.3,0.00570396]
[1748590885914,2.62941,2628.4,2628.3,0.00570396]
[1748590886212,0.06993857,2628.5,2628.3,0.00570396]
[1748590886398,0.83053857,2628.5,2628.4,4.211]
[1748590886906,1.94227248,2628.5,2628.4,4.211]
[1748590887104,0.83053857,2628.5,2628.4,4.211]
[1748590887602,1.94248899,2628.5,2628.4,4.211]
[1748590887908,0.06993857,2628.5,2628.4,4.97161]
[1748590888607,0.06993857,2628.5,2628.4,6.21231]
[1748590889103,0.00570396,2628.8,2628.7,0.76053]
[1748590889303,0.00570396,2628.8,2628.7,3.96833]
[1748590890105,0.00570396,2628.8,2628.7,8.96833]
[1748590890305,1.9487,2629.5,2628.7,8.96833]
[1748590890306,1.9487,2629.5,2628.9,1.90114]
[1748590890512,1.9487,2629.5,2629.4,0.76033]
[1748590890705,3.05970957,2629.5,2629.4,4.97133]
[1748590890911,2.709,2629.5,2629.4,4.211]
[1748590891106,3.81997446,2629.5,2629.4,4.211]
[1748590891314,3.14030816,2629.5,2629.4,4.211]
[1748590891504,1.87130816,2629.5,2629.4,4.211]
[1748590891712,0.7603,2629.5,2629.4,4.211]
[1748590893411,0.00570396,2629.7,2629.4,7.4188]
[1748590893713,0.00570396,2629.7,2629.5,1.2985]